[Event "GrandPrix_30.05"]
[Site "Chess.com"]
[Date "2020.05.30"]
[Round "5"]
[White "fm_magua"]
[Black "Khvicha_Supatashvili"]
[Result "0-1"]
[WhiteElo "1900"]
[BlackElo "2240"]
[TimeControl "600+2"]
[EndTime "10:20:45 PDT"]
[Termination "Khvicha_Supatashvili won by resignation"]

1. e4 {[%clk 0:10:01.9]} 1... c5 {[%clk 0:10:00]} 2. Nf3 {[%clk 0:10:02.4]} 2...
Nc6 {[%clk 0:10:01]} 3. d4 {[%clk 0:10:03.5]} 3... cxd4 {[%clk 0:10:01.8]} 4.
Nxd4 {[%clk 0:10:05.4]} 4... Nf6 {[%clk 0:10:03.2]} 5. Nc3 {[%clk 0:10:06.6]}
5... d6 {[%clk 0:10:04.7]} 6. Bc4 {[%clk 0:10:06.7]} 6... e6 {[%clk 0:10:05.7]}
7. Bb3 {[%clk 0:10:07.4]} 7... Be7 {[%clk 0:10:02.1]} 8. O-O {[%clk 0:10:08.3]}
8... O-O {[%clk 0:10:02.2]} 9. f4 {[%clk 0:09:51.8]} 9... Na5 {[%clk 0:09:53.8]}
10. f5 {[%clk 0:09:51.8]} 10... Nxb3 {[%clk 0:09:53.2]} 11. axb3 {[%clk
0:09:52.4]} 11... Bd7 {[%clk 0:09:18.2]} 12. Kh1 {[%clk 0:09:42.2]} 12... a6
{[%clk 0:08:53.6]} 13. Bg5 {[%clk 0:09:42.2]} 13... h6 {[%clk 0:08:47.9]} 14.
Bh4 {[%clk 0:09:42.7]} 14... Rc8 {[%clk 0:08:07.4]} 15. Qf3 {[%clk 0:09:26.4]}
15... Rc7 {[%clk 0:07:43.5]} 16. Rad1 {[%clk 0:09:24.9]} 16... Qc8 {[%clk
0:07:36.6]} 17. Nde2 {[%clk 0:08:53.8]} 17... b5 {[%clk 0:07:31.3]} 18. b4
{[%clk 0:08:44.3]} 18... Bc6 {[%clk 0:07:20.2]} 19. Bxf6 {[%clk 0:08:43.6]}
19... Bxf6 {[%clk 0:07:19.5]} 20. Rxd6 {[%clk 0:08:42.4]} 20... Be5 {[%clk
0:07:07.6]} 21. Rdd1 {[%clk 0:08:40.6]} 21... a5 {[%clk 0:06:43.5]} 22. fxe6
{[%clk 0:08:14.4]} 22... fxe6 {[%clk 0:06:41.1]} 23. Qxf8+ {[%clk 0:08:14.9]}
23... Qxf8 {[%clk 0:06:41.4]} 24. Rxf8+ {[%clk 0:08:16.5]} 24... Kxf8 {[%clk
0:06:42.7]} 25. Nd4 {[%clk 0:08:14.9]} 25... Bxd4 {[%clk 0:05:46.4]} 26. Rxd4
{[%clk 0:08:13.9]} 26... e5 {[%clk 0:05:47.5]} 27. Rd2 {[%clk 0:08:00.6]} 27...
axb4 {[%clk 0:05:47.2]} 28. Nd5 {[%clk 0:08:01.9]} 28... Bxd5 {[%clk 0:05:41.3]}
29. exd5 {[%clk 0:08:02.8]} 29... Rf7 {[%clk 0:03:57.3]} 30. Kg1 {[%clk
0:07:42.5]} 30... Ke7 {[%clk 0:03:56.9]} 31. Re2 {[%clk 0:06:58.3]} 31... Kd6
{[%clk 0:03:56.2]} 32. Re4 {[%clk 0:06:59.4]} 32... Rf4 {[%clk 0:03:56]} 33. Re3
{[%clk 0:06:40.7]} 33... Kxd5 {[%clk 0:03:55.8]} 34. g3 {[%clk 0:06:42.3]} 34...
Rd4 {[%clk 0:03:49.8]} 35. Rb3 {[%clk 0:06:40.6]} 35... Rd1+ {[%clk 0:03:31.8]}
36. Kg2 {[%clk 0:06:41.4]} 36... Rd2+ {[%clk 0:03:31.1]} 37. Kh3 {[%clk
0:06:42.4]} 37... Kc4 {[%clk 0:03:09.7]} 38. Re3 {[%clk 0:06:42.9]} 38... Kd4
{[%clk 0:03:08.3]} 39. Rb3 {[%clk 0:06:43.4]} 39... Rxc2 {[%clk 0:03:00.8]} 40.
Rxb4+ {[%clk 0:06:44.7]} 40... Kc5 {[%clk 0:03:01]} 41. Re4 {[%clk 0:06:45.8]}
41... Kd5 {[%clk 0:02:43.9]} 42. Rb4 {[%clk 0:06:44.8]} 42... Rc5 {[%clk
0:02:44.9]} 43. b3 {[%clk 0:06:43.1]} 43... e4 {[%clk 0:02:37.3]} 44. Kg4 {[%clk
0:06:42.7]} 44... Ke5 {[%clk 0:02:36]} 45. h4 {[%clk 0:06:43.1]} 45... g6 {[%clk
0:02:34.5]} 46. h5 {[%clk 0:06:40.3]} 46... g5 {[%clk 0:02:30.4]} 47. Kh3 {[%clk
0:06:40.1]} 47... Rd5 {[%clk 0:02:20.1]} 48. Kg2 {[%clk 0:06:40.8]} 48... Kf5
{[%clk 0:01:49.8]} 49. Kf2 {[%clk 0:06:41.3]} 49... Re5 {[%clk 0:01:33.4]} 50.
Ke3 {[%clk 0:06:42.1]} 50... Kg4 {[%clk 0:01:28.5]} 51. Rd4 {[%clk 0:06:42.9]}
51... Kxh5 {[%clk 0:01:28.5]} 52. Rd6 {[%clk 0:06:43.5]} 52... Kg4 {[%clk
0:01:26.3]} 53. Rxh6 {[%clk 0:06:44.1]} 53... Kxg3 {[%clk 0:01:27.6]} 54. b4
{[%clk 0:06:41.1]} 54... g4 {[%clk 0:01:24.9]} 55. Kd4 {[%clk 0:06:41.1]} 55...
Re8 {[%clk 0:01:23.9]} 56. Ke3 {[%clk 0:06:42.4]} 56... Kg2 {[%clk 0:01:24.5]}
57. Rg6 {[%clk 0:06:43]} 57... g3 {[%clk 0:01:24.9]} 58. Kf4 {[%clk 0:06:44.3]}
58... e3 {[%clk 0:01:17.9]} 59. Rxg3+ {[%clk 0:06:44.7]} 59... Kf2 {[%clk
0:01:18.8]} 60. Rf3+ {[%clk 0:06:46.1]} 60... Ke2 {[%clk 0:01:18.8]} 61. Rh3
{[%clk 0:06:47]} 61... Kd2 {[%clk 0:01:18.3]} 0-1

[Event "GrandPrix_30.05"]
[Site "Chess.com"]
[Date "2020.05.30"]
[Round "5"]
[White "LANCELOT96"]
[Black "Karacsonyi_Gellert"]
[Result "1-0"]
[WhiteElo "2186"]
[BlackElo "2191"]
[TimeControl "600+2"]
[EndTime "10:20:51 PDT"]
[Termination "LANCELOT96 won by resignation"]

1. d4 {[%clk 0:10:01.9]} 1... Nf6 {[%clk 0:10:00.5]} 2. c4 {[%clk 0:10:03.2]}
2... e6 {[%clk 0:10:01.3]} 3. Nf3 {[%clk 0:10:04.4]} 3... d5 {[%clk 0:10:01.9]}
4. Nc3 {[%clk 0:10:05.1]} 4... Nbd7 {[%clk 0:10:02.3]} 5. Bg5 {[%clk 0:10:05.9]}
5... Be7 {[%clk 0:09:59.7]} 6. e3 {[%clk 0:10:07]} 6... h6 {[%clk 0:10:00.8]} 7.
Bh4 {[%clk 0:10:07.9]} 7... O-O {[%clk 0:10:01.1]} 8. c5 {[%clk 0:10:08.2]} 8...
c6 {[%clk 0:09:28.7]} 9. Be2 {[%clk 0:10:08.8]} 9... Ne4 {[%clk 0:09:19.9]} 10.
Bxe7 {[%clk 0:10:09.3]} 10... Qxe7 {[%clk 0:09:21.8]} 11. Nxe4 {[%clk
0:10:09.5]} 11... dxe4 {[%clk 0:09:23.7]} 12. Nd2 {[%clk 0:10:11]} 12... f5
{[%clk 0:09:24.7]} 13. Nc4 {[%clk 0:10:09.8]} 13... e5 {[%clk 0:09:19.8]} 14.
Nd6 {[%clk 0:10:11.2]} 14... b6 {[%clk 0:09:12.2]} 15. b4 {[%clk 0:10:11.9]}
15... exd4 {[%clk 0:09:05]} 16. Qxd4 {[%clk 0:10:03.4]} 16... a5 {[%clk
0:08:13.7]} 17. cxb6 {[%clk 0:10:02.9]} 17... Nxb6 {[%clk 0:07:44.6]} 18. bxa5
{[%clk 0:09:44.4]} 18... Nd5 {[%clk 0:07:27.6]} 19. Nxc8 {[%clk 0:09:45.6]}
19... Rfxc8 {[%clk 0:07:27.6]} 20. a6 {[%clk 0:09:47.1]} 20... Rd8 {[%clk
0:07:19.7]} 21. O-O {[%clk 0:09:21.9]} 21... Kh8 {[%clk 0:07:08.4]} 22. Rfc1
{[%clk 0:08:02.3]} 22... f4 {[%clk 0:05:43.4]} 23. exf4 {[%clk 0:06:28.9]} 23...
Nxf4 {[%clk 0:05:18.4]} 24. Qe3 {[%clk 0:06:29.1]} 24... Qg5 {[%clk 0:04:24.3]}
25. g3 {[%clk 0:06:30.4]} 25... Rf8 {[%clk 0:03:01.8]} 26. Bf1 {[%clk
0:06:23.8]} 26... Qg6 {[%clk 0:02:38.3]} 27. Rc4 {[%clk 0:06:08.5]} 27... Qf6
{[%clk 0:02:06.2]} 28. Qd4 {[%clk 0:05:26.2]} 28... Nd3 {[%clk 0:01:35.9]} 29.
Qxf6 {[%clk 0:05:17.2]} 29... Rxf6 {[%clk 0:01:37.8]} 30. Rxe4 {[%clk
0:05:11.4]} 30... Nxf2 {[%clk 0:01:38.9]} 31. Rf4 {[%clk 0:05:05.7]} 31... Rxf4
{[%clk 0:01:36.7]} 32. gxf4 {[%clk 0:05:07.5]} 32... Ne4 {[%clk 0:01:32.3]} 33.
Rc1 {[%clk 0:04:56.8]} 33... Nf6 {[%clk 0:01:19.9]} 34. Rxc6 {[%clk 0:04:55.7]}
34... Nd5 {[%clk 0:01:21.3]} 35. Bg2 {[%clk 0:04:45.5]} 35... Nxf4 {[%clk
0:01:20.5]} 36. Rxh6+ {[%clk 0:04:41.4]} 1-0

[Event "GrandPrix_30.05"]
[Site "Chess.com"]
[Date "2020.05.30"]
[Round "5"]
[White "v-kazakouski"]
[Black "Olghita64"]
[Result "1-0"]
[WhiteElo "2402"]
[BlackElo "2067"]
[TimeControl "600+2"]
[EndTime "10:21:03 PDT"]
[Termination "v-kazakouski won by resignation"]

1. d4 {[%clk 0:09:59.3]} 1... d5 {[%clk 0:09:59.5]} 2. c4 {[%clk 0:09:59.1]}
2... c6 {[%clk 0:09:59.6]} 3. cxd5 {[%clk 0:09:59.1]} 3... cxd5 {[%clk
0:10:00.3]} 4. Nc3 {[%clk 0:09:59.2]} 4... Nf6 {[%clk 0:09:59.5]} 5. Bg5 {[%clk
0:09:58.8]} 5... Ne4 {[%clk 0:09:33.8]} 6. Nxe4 {[%clk 0:09:56.3]} 6... dxe4
{[%clk 0:09:34.1]} 7. Rc1 {[%clk 0:09:56.3]} 7... h6 {[%clk 0:09:04.2]} 8. Bd2
{[%clk 0:09:52.7]} 8... Nc6 {[%clk 0:08:22.5]} 9. e3 {[%clk 0:09:45.2]} 9... Be6
{[%clk 0:08:00.6]} 10. Ne2 {[%clk 0:08:41.6]} 10... Bxa2 {[%clk 0:07:36.4]} 11.
Qa4 {[%clk 0:07:01.1]} 11... Bd5 {[%clk 0:07:34.4]} 12. Nf4 {[%clk 0:06:51.6]}
12... Rc8 {[%clk 0:06:08.7]} 13. Nxd5 {[%clk 0:06:29.5]} 13... Qxd5 {[%clk
0:06:08.5]} 14. Bc4 {[%clk 0:06:28]} 14... Qd7 {[%clk 0:03:19.8]} 15. d5 {[%clk
0:05:27.6]} 15... Rd8 {[%clk 0:03:19.6]} 16. Bc3 {[%clk 0:04:45]} 16... e6
{[%clk 0:03:11.5]} 17. dxc6 {[%clk 0:04:36.8]} 17... bxc6 {[%clk 0:03:11.3]} 18.
O-O {[%clk 0:04:35.3]} 18... Bd6 {[%clk 0:02:39.5]} 19. Be2 {[%clk 0:04:03.8]}
19... f5 {[%clk 0:02:17.2]} 20. Bh5+ {[%clk 0:04:01.8]} 20... Kf8 {[%clk
0:02:18]} 21. Rfd1 {[%clk 0:03:59.1]} 21... Qc7 {[%clk 0:02:16.5]} 22. Rxd6
{[%clk 0:03:18.7]} 22... Rxd6 {[%clk 0:02:11.4]} 23. Bb4 {[%clk 0:03:18.6]}
23... g6 {[%clk 0:02:03.3]} 24. Rxc6 {[%clk 0:03:10.1]} 1-0

[Event "GrandPrix_30.05"]
[Site "Chess.com"]
[Date "2020.05.30"]
[Round "5"]
[White "Dolphin_2010"]
[Black "Salnaa"]
[Result "1-0"]
[WhiteElo "2098"]
[BlackElo "2133"]
[TimeControl "600+2"]
[EndTime "10:21:03 PDT"]
[Termination "Dolphin_2010 won by resignation"]

1. e4 {[%clk 0:10:01.9]} 1... c5 {[%clk 0:10:00.9]} 2. Nf3 {[%clk 0:10:01.9]}
2... Nc6 {[%clk 0:10:01.7]} 3. Bb5 {[%clk 0:10:01.6]} 3... g6 {[%clk 0:10:02.1]}
4. Bxc6 {[%clk 0:10:02.4]} 4... dxc6 {[%clk 0:10:04]} 5. O-O {[%clk 0:10:01.9]}
5... Bg7 {[%clk 0:10:02.1]} 6. d3 {[%clk 0:10:01.5]} 6... Qc7 {[%clk 0:10:02.9]}
7. Nc3 {[%clk 0:10:01.4]} 7... Nf6 {[%clk 0:09:42.3]} 8. Be3 {[%clk 0:09:52.3]}
8... b6 {[%clk 0:09:41.6]} 9. a4 {[%clk 0:09:52.6]} 9... a5 {[%clk 0:09:38.5]}
10. Qd2 {[%clk 0:09:41.3]} 10... Ng4 {[%clk 0:06:52.7]} 11. Bf4 {[%clk
0:09:30.2]} 11... e5 {[%clk 0:06:47]} 12. Bg3 {[%clk 0:09:28.5]} 12... f6 {[%clk
0:06:23.7]} 13. Ne1 {[%clk 0:09:21.2]} 13... O-O {[%clk 0:06:16.9]} 14. f4
{[%clk 0:09:16.3]} 14... Bh6 {[%clk 0:05:42.5]} 15. h3 {[%clk 0:09:12.9]} 15...
exf4 {[%clk 0:05:41.5]} 16. hxg4 {[%clk 0:09:09.5]} 16... g5 {[%clk 0:05:29]}
17. Bh2 {[%clk 0:09:02.2]} 17... Bxg4 {[%clk 0:05:01.4]} 18. Qf2 {[%clk
0:08:49.3]} 18... f5 {[%clk 0:04:15.9]} 19. Nf3 {[%clk 0:08:33.1]} 19... Bg7
{[%clk 0:04:09.3]} 20. Kh1 {[%clk 0:08:21.8]} 20... h6 {[%clk 0:04:05.4]} 21.
Rae1 {[%clk 0:07:55.1]} 21... Qd7 {[%clk 0:02:59.6]} 22. exf5 {[%clk 0:07:20.2]}
22... Bxf5 {[%clk 0:02:44.4]} 23. Ne5 {[%clk 0:07:14.8]} 23... Qc7 {[%clk
0:02:31.5]} 24. Nc4 {[%clk 0:06:54.1]} 24... Bd4 {[%clk 0:02:21.4]} 25. Qf3
{[%clk 0:06:42.9]} 25... Rae8 {[%clk 0:02:20.8]} 26. Qh5 {[%clk 0:06:37.4]}
26... Rxe1 {[%clk 0:01:36.4]} 27. Rxe1 {[%clk 0:06:39.3]} 27... Kg7 {[%clk
0:01:37.7]} 28. Ne2 {[%clk 0:06:00.5]} 28... Qe7 {[%clk 0:01:30.6]} 29. Rf1
{[%clk 0:05:44.1]} 29... Bg6 {[%clk 0:01:23.3]} 30. Qf3 {[%clk 0:05:41.5]} 30...
g4 {[%clk 0:01:19.2]} 31. Qxg4 {[%clk 0:05:37.9]} 31... f3 {[%clk 0:01:10.9]}
32. Nxd4 {[%clk 0:05:33.9]} 32... h5 {[%clk 0:00:34.6]} 33. Ne6+ {[%clk
0:05:11.7]} 1-0

[Event "GrandPrix_30.05"]
[Site "Chess.com"]
[Date "2020.05.30"]
[Round "5"]
[White "esskeettit"]
[Black "Gurvich_Vitaly"]
[Result "0-1"]
[WhiteElo "2100"]
[BlackElo "2264"]
[TimeControl "600+2"]
[EndTime "10:21:07 PDT"]
[Termination "Gurvich_Vitaly won by resignation"]

1. d4 {[%clk 0:10:01.9]} 1... Nf6 {[%clk 0:10:00.4]} 2. c4 {[%clk 0:10:03.3]}
2... g6 {[%clk 0:10:02.3]} 3. Nc3 {[%clk 0:10:04.4]} 3... d5 {[%clk 0:10:03.9]}
4. cxd5 {[%clk 0:10:06.3]} 4... Nxd5 {[%clk 0:10:05.6]} 5. e4 {[%clk 0:10:08.1]}
5... Nxc3 {[%clk 0:10:06.8]} 6. bxc3 {[%clk 0:10:10]} 6... Bg7 {[%clk
0:10:08.3]} 7. Nf3 {[%clk 0:10:11.6]} 7... O-O {[%clk 0:10:09.1]} 8. Be3 {[%clk
0:10:11.5]} 8... c5 {[%clk 0:10:10.2]} 9. Qd2 {[%clk 0:10:06.8]} 9... Qa5 {[%clk
0:10:11.7]} 10. Rc1 {[%clk 0:09:59.2]} 10... Rd8 {[%clk 0:10:10.9]} 11. d5
{[%clk 0:09:28.8]} 11... Nc6 {[%clk 0:10:07.4]} 12. c4 {[%clk 0:09:21.5]} 12...
Qxd2+ {[%clk 0:10:05.7]} 13. Nxd2 {[%clk 0:09:09.8]} 13... Nd4 {[%clk
0:10:05.3]} 14. Nb3 {[%clk 0:09:03.1]} 14... b6 {[%clk 0:09:57.7]} 15. Bd3
{[%clk 0:08:21.6]} 15... e6 {[%clk 0:09:56.1]} 16. O-O {[%clk 0:07:37.1]} 16...
f5 {[%clk 0:09:54.6]} 17. f3 {[%clk 0:07:36.1]} 17... Bd7 {[%clk 0:09:46.8]} 18.
Bxd4 {[%clk 0:07:12]} 18... cxd4 {[%clk 0:09:48.7]} 19. Rfe1 {[%clk 0:06:38.9]}
19... Rac8 {[%clk 0:09:39.9]} 20. Rc2 {[%clk 0:05:40]} 20... exd5 {[%clk
0:09:34.6]} 21. exd5 {[%clk 0:05:40.8]} 21... Re8 {[%clk 0:09:35.5]} 22. Rxe8+
{[%clk 0:05:26.9]} 22... Rxe8 {[%clk 0:09:37.4]} 23. c5 {[%clk 0:05:18.5]} 23...
bxc5 {[%clk 0:09:35.4]} 24. Nxc5 {[%clk 0:05:19.1]} 24... Bc8 {[%clk 0:09:35.8]}
25. Bc4 {[%clk 0:03:54.8]} 25... d3 {[%clk 0:08:46.6]} 26. Nxd3 {[%clk
0:03:35.5]} 26... Bd4+ {[%clk 0:08:46.8]} 27. Kf1 {[%clk 0:03:35.3]} 27... Kg7
{[%clk 0:08:48.1]} 28. Bb5 {[%clk 0:03:33.8]} 28... Rd8 {[%clk 0:08:48.9]} 29.
Rc7+ {[%clk 0:03:15.9]} 29... Kh6 {[%clk 0:08:48.1]} 30. d6 {[%clk 0:03:00.9]}
30... Bb6 {[%clk 0:08:47.5]} 31. Rc3 {[%clk 0:02:10.1]} 31... Be6 {[%clk
0:08:45.3]} 32. Rc6 {[%clk 0:01:17.3]} 32... Bd5 {[%clk 0:08:29.2]} 33. Rc3
{[%clk 0:00:48.8]} 33... Rxd6 {[%clk 0:08:28.6]} 34. Ne5 {[%clk 0:00:50.1]}
34... Bd4 {[%clk 0:08:17.9]} 35. Nc4 {[%clk 0:00:51.1]} 35... Bxc4+ {[%clk
0:08:04.1]} 36. Rxc4 {[%clk 0:00:51.6]} 36... Bb6 {[%clk 0:08:04.9]} 37. Ke2
{[%clk 0:00:50.3]} 37... Re6+ {[%clk 0:08:05.7]} 38. Kd2 {[%clk 0:00:46.9]}
38... Ba5+ {[%clk 0:08:06.3]} 39. Kd3 {[%clk 0:00:47.8]} 39... Re1 {[%clk
0:08:06.8]} 40. Rc2 {[%clk 0:00:46.5]} 40... Rh1 {[%clk 0:08:07]} 41. h3 {[%clk
0:00:47.2]} 41... Kg5 {[%clk 0:08:03.6]} 42. Bc6 {[%clk 0:00:12.9]} 42... Kf4
{[%clk 0:08:00.2]} 43. Rc5 {[%clk 0:00:12.6]} 43... Bb6 {[%clk 0:07:59.4]} 44.
Rd5 {[%clk 0:00:06.9]} 44... Kg3 {[%clk 0:07:55]} 45. f4 {[%clk 0:00:07.7]}
45... Rd1+ {[%clk 0:07:43.3]} 46. Ke2 {[%clk 0:00:06.3]} 46... Ra1 {[%clk
0:07:43.4]} 47. Rd7 {[%clk 0:00:07]} 47... Rxa2+ {[%clk 0:07:44.3]} 48. Kd3
{[%clk 0:00:08.5]} 48... Kxf4 {[%clk 0:07:34.2]} 49. Rxh7 {[%clk 0:00:09.6]}
49... Ra3+ {[%clk 0:07:29.6]} 50. Kc4 {[%clk 0:00:10.4]} 50... Ra1 {[%clk
0:07:25.1]} 51. h4 {[%clk 0:00:09.7]} 51... Rc1+ {[%clk 0:07:25.9]} 52. Kb5
{[%clk 0:00:10.7]} 52... Rc5+ {[%clk 0:07:26.6]} 53. Kb4 {[%clk 0:00:11.9]}
53... Rxc6 {[%clk 0:07:27.6]} 54. h5 {[%clk 0:00:13.5]} 54... gxh5 {[%clk
0:07:27.4]} 55. Rxh5 {[%clk 0:00:15.4]} 55... Rg6 {[%clk 0:07:27.8]} 56. Rh4+
{[%clk 0:00:13.8]} 56... Kg3 {[%clk 0:07:27.7]} 57. Rh5 {[%clk 0:00:15.1]} 57...
f4 {[%clk 0:07:28.5]} 58. Rf5 {[%clk 0:00:15.4]} 58... Rg4 {[%clk 0:07:29.2]}
59. Kc3 {[%clk 0:00:06.8]} 59... Kxg2 {[%clk 0:07:30.1]} 60. Kd3 {[%clk
0:00:08.3]} 60... f3 {[%clk 0:07:31.4]} 0-1

[Event "GrandPrix_30.05"]
[Site "Chess.com"]
[Date "2020.05.30"]
[Round "5"]
[White "Happy1712Drummer"]
[Black "rusuvlad95"]
[Result "0-1"]
[WhiteElo "2150"]
[BlackElo "2109"]
[TimeControl "600+2"]
[EndTime "10:21:27 PDT"]
[Termination "rusuvlad95 won by resignation"]

1. d4 {[%clk 0:06:15.6]} 1... Nf6 {[%clk 0:09:57]} 2. Nf3 {[%clk 0:06:14.4]}
2... d5 {[%clk 0:09:57.7]} 3. e3 {[%clk 0:06:15.9]} 3... Bf5 {[%clk 0:09:52.3]}
4. c4 {[%clk 0:06:17.8]} 4... c6 {[%clk 0:09:48.8]} 5. Nc3 {[%clk 0:06:18.4]}
5... e6 {[%clk 0:09:48.7]} 6. Bd3 {[%clk 0:06:19.7]} 6... Bg6 {[%clk 0:09:42.9]}
7. O-O {[%clk 0:06:18.3]} 7... Bd6 {[%clk 0:09:25.2]} 8. b3 {[%clk 0:06:18.4]}
8... Nbd7 {[%clk 0:09:22.6]} 9. Bb2 {[%clk 0:06:18.9]} 9... Rc8 {[%clk
0:09:13.3]} 10. Re1 {[%clk 0:06:18.7]} 10... Ne4 {[%clk 0:09:10.2]} 11. Ne2
{[%clk 0:05:46.2]} 11... f5 {[%clk 0:09:03]} 12. Nf4 {[%clk 0:05:33.4]} 12...
Bxf4 {[%clk 0:08:27.5]} 13. exf4 {[%clk 0:05:19.1]} 13... Bh5 {[%clk 0:08:27.7]}
14. Be2 {[%clk 0:05:13.6]} 14... O-O {[%clk 0:07:58.2]} 15. a3 {[%clk
0:04:47.5]} 15... Qc7 {[%clk 0:07:41.1]} 16. Rc1 {[%clk 0:04:44.8]} 16... Qxf4
{[%clk 0:07:31.4]} 17. Qd3 {[%clk 0:04:38.7]} 17... Rf6 {[%clk 0:06:01.9]} 18.
g3 {[%clk 0:04:15.9]} 18... Rg6 {[%clk 0:06:00.5]} 19. Qe3 {[%clk 0:03:32.6]}
19... Nxg3 {[%clk 0:05:43.3]} 20. Qxf4 {[%clk 0:02:55.9]} 20... Nxe2+ {[%clk
0:05:41.1]} 21. Kf1 {[%clk 0:02:52.1]} 21... Nxf4 {[%clk 0:05:39]} 22. Nh4
{[%clk 0:02:54]} 22... Rf6 {[%clk 0:05:10.7]} 23. Re3 {[%clk 0:02:42.4]} 23...
g5 {[%clk 0:05:10.3]} 24. Ng2 {[%clk 0:02:41.9]} 24... Nxg2 {[%clk 0:05:08]} 25.
Kxg2 {[%clk 0:02:41.5]} 25... Re8 {[%clk 0:05:01.9]} 26. Rce1 {[%clk 0:02:02]}
26... f4 {[%clk 0:05:03.2]} 27. Rh3 {[%clk 0:01:59.1]} 27... Bg4 {[%clk
0:05:02.8]} 28. Rc3 {[%clk 0:01:57]} 28... Kf7 {[%clk 0:04:57.5]} 29. a4 {[%clk
0:01:48.8]} 29... h5 {[%clk 0:04:56.7]} 30. f3 {[%clk 0:01:44.5]} 30... Bf5
{[%clk 0:04:57.8]} 31. b4 {[%clk 0:01:46.1]} 31... g4 {[%clk 0:04:58.9]} 32. h3
{[%clk 0:01:45.2]} 32... gxh3+ {[%clk 0:04:43.9]} 33. Kh2 {[%clk 0:01:13.6]}
33... Rg8 {[%clk 0:04:45.2]} 34. cxd5 {[%clk 0:01:05.6]} 34... exd5 {[%clk
0:04:43.3]} 35. Bc1 {[%clk 0:01:04]} 35... Rg2+ {[%clk 0:04:39.3]} 0-1

[Event "GrandPrix_30.05"]
[Site "Chess.com"]
[Date "2020.05.30"]
[Round "5"]
[White "Winawer81"]
[Black "ArnaudovP"]
[Result "0-1"]
[WhiteElo "2142"]
[BlackElo "2247"]
[TimeControl "600+2"]
[EndTime "10:21:31 PDT"]
[Termination "ArnaudovP won on time"]

1. e4 {[%clk 0:10:01.7]} 1... e5 {[%clk 0:09:59.8]} 2. Nf3 {[%clk 0:10:01.5]}
2... Nc6 {[%clk 0:09:59.2]} 3. Bc4 {[%clk 0:10:01.3]} 3... Bc5 {[%clk
0:09:57.2]} 4. c3 {[%clk 0:10:01.3]} 4... Nf6 {[%clk 0:09:57.5]} 5. d3 {[%clk
0:10:01.3]} 5... h6 {[%clk 0:09:51.1]} 6. Bb3 {[%clk 0:09:59.1]} 6... d6 {[%clk
0:09:50.3]} 7. h3 {[%clk 0:09:57]} 7... a6 {[%clk 0:09:49.8]} 8. Nbd2 {[%clk
0:09:50.6]} 8... Ba7 {[%clk 0:09:49.4]} 9. Nf1 {[%clk 0:09:48.9]} 9... Be6
{[%clk 0:09:49.1]} 10. Bc2 {[%clk 0:09:44]} 10... Qd7 {[%clk 0:09:49.5]} 11. Ng3
{[%clk 0:09:32.5]} 11... O-O-O {[%clk 0:09:41.8]} 12. Qe2 {[%clk 0:09:10.1]}
12... g5 {[%clk 0:09:41.2]} 13. Be3 {[%clk 0:08:30.5]} 13... Bxe3 {[%clk
0:09:39.6]} 14. Qxe3 {[%clk 0:08:10.8]} 14... d5 {[%clk 0:09:38.6]} 15. Nd2
{[%clk 0:07:13.3]} 15... d4 {[%clk 0:09:36.3]} 16. Qf3 {[%clk 0:07:06.7]} 16...
Ne8 {[%clk 0:09:09.3]} 17. Nf5 {[%clk 0:06:58.6]} 17... Nd6 {[%clk 0:09:09.4]}
18. g4 {[%clk 0:06:37]} 18... h5 {[%clk 0:09:07.4]} 19. c4 {[%clk 0:05:14.8]}
19... Nb4 {[%clk 0:08:51.6]} 20. Bb1 {[%clk 0:05:09]} 20... c5 {[%clk
0:08:40.1]} 21. a3 {[%clk 0:04:55.8]} 21... Nc6 {[%clk 0:08:40.1]} 22. Bc2
{[%clk 0:04:46.7]} 22... b5 {[%clk 0:08:39.6]} 23. Rc1 {[%clk 0:03:35.8]} 23...
Kb7 {[%clk 0:08:38.1]} 24. Nb3 {[%clk 0:03:13]} 24... Kb6 {[%clk 0:08:30.9]} 25.
Nxc5 {[%clk 0:03:09.3]} 25... Kxc5 {[%clk 0:08:20]} 26. b4+ {[%clk 0:02:59.8]}
26... Nxb4 {[%clk 0:08:16.9]} 27. axb4+ {[%clk 0:02:59.5]} 27... Kxb4 {[%clk
0:08:18]} 28. cxb5 {[%clk 0:02:42.7]} 28... Nxb5 {[%clk 0:08:14.1]} 29. Rb1+
{[%clk 0:02:30.7]} 29... Kc5 {[%clk 0:08:11.2]} 30. Ba4 {[%clk 0:02:27.1]} 30...
hxg4 {[%clk 0:08:10.3]} 31. hxg4 {[%clk 0:02:21.6]} 31... Rxh1+ {[%clk
0:08:08.2]} 32. Qxh1 {[%clk 0:02:21.8]} 32... Qc7 {[%clk 0:08:08.1]} 33. Bxb5
{[%clk 0:02:16.1]} 33... Qa5+ {[%clk 0:08:07.7]} 34. Ke2 {[%clk 0:02:15]} 34...
axb5 {[%clk 0:07:56.7]} 35. Ra1 {[%clk 0:01:56.9]} 35... Qb4 {[%clk 0:07:50.5]}
36. Qc1+ {[%clk 0:01:13.7]} 36... Qc3 {[%clk 0:07:49.7]} 37. Qd1 {[%clk
0:01:13.2]} 37... Kb6 {[%clk 0:07:45.1]} 38. Rc1 {[%clk 0:01:09.9]} 38... Qa3
{[%clk 0:07:36.9]} 39. Kf3 {[%clk 0:00:54]} 39... Bc4 {[%clk 0:07:32.5]} 40. Ke2
{[%clk 0:00:44.6]} 40... Bb3 {[%clk 0:07:33]} 41. Qh1 {[%clk 0:00:34.5]} 41...
Be6 {[%clk 0:07:24.7]} 42. Qd1 {[%clk 0:00:33.4]} 42... Rh8 {[%clk 0:07:16.6]}
43. Ra1 {[%clk 0:00:25.8]} 43... Qb2+ {[%clk 0:07:13]} 44. Kf3 {[%clk
0:00:23.2]} 44... Rh2 {[%clk 0:07:10.6]} 45. Qg1 {[%clk 0:00:21]} 45... Rh3+
{[%clk 0:07:01.4]} 46. Kg2 {[%clk 0:00:02.7]} 46... Rxd3 {[%clk 0:06:59.3]} 47.
Qh2 {[%clk 0:00:03.2]} 47... Qxa1 {[%clk 0:06:27]} 48. Qxe5 {[%clk 0:00:04.6]}
48... Rd1 {[%clk 0:06:25.9]} 49. Qd6+ {[%clk 0:00:02.9]} 49... Ka5 {[%clk
0:06:27]} 50. Qc7+ {[%clk 0:00:02.7]} 50... Ka4 {[%clk 0:06:28]} 0-1